bitfinex/quotes_SOLUSD_20241225
["timestamp","ask_amount","ask_price","bid_price","bid_amount"]
[1735129876301,7.92507672,196.46,196.35,24.54062942]
[1735129876608,12.7246,196.47,196.36,0.12549]
[1735129877107,7.92507672,196.48,196.36,0.12549]
[1735129877310,7.92507672,196.48,196.38,6.26169]
[1735129877517,7.92507672,196.48,196.41,7.7771]
[1735129877826,7.92507672,196.5,196.41,7.7771]
[1735129878931,12.7207,196.53,196.41,7.7771]
[1735129879926,20.0,196.5,196.41,7.7771]
[1735129880311,20.0,196.49,196.41,7.7771]
[1735129880849,23.776884,196.48,196.41,7.7771]
[1735129881050,20.0,196.45,196.37,7.9088]
[1735129881330,0.12549,196.44,196.37,6.3832]
[1735129881634,0.12549,196.44,196.32,7.9088]
[1735129882218,12.7271,196.43,196.32,7.9088]
[1735129882623,20.0,196.4,196.32,7.9088]
[1735129883525,32.7292,196.4,196.32,7.9088]
[1735129884806,12.7292,196.4,196.32,7.9088]
[1735129885707,32.7271,196.43,196.32,7.9088]
[1735129887642,20.0,196.38,196.32,7.9088]
[1735129887842,23.776884,196.4,196.32,7.9088]
[1735129888422,20.0,196.38,196.32,7.9088]
[1735129890137,20.0,196.39,196.32,7.9088]
[1735129890340,20.0,196.38,196.32,7.9088]
[1735129891347,32.7305,196.38,196.32,7.9088]
[1735129893448,32.7305,196.38,196.32,6.3832]
[1735129893615,32.7305,196.38,196.27,1.6408]
[1735129897733,23.902374,196.37,196.27,1.6408]
[1735129897919,20.0,196.34,196.27,1.6408]
[1735129899043,12.7336,196.33,196.27,1.6408]
[1735129901248,12.7317,196.36,196.27,1.6408]
[1735129903143,20.0,196.38,196.27,1.6408]
[1735129903346,20.0,196.37,196.27,1.6408]
[1735129904342,12.7317,196.36,196.27,1.6408]
[1735129909162,23.776884,196.35,196.27,1.6408]
[1735129910540,12.733,196.34,196.27,1.6408]
[1735129916054,23.776884,196.33,196.27,1.6408]
[1735129916650,12.733,196.34,196.27,1.6408]
[1735129921162,20.0,196.35,196.27,1.6408]
[1735129922354,12.7309,196.38,196.27,1.6408]
[1735129922560,12.7309,196.38,196.28,6.1576]
[1735129923757,23.776884,196.4,196.28,6.1576]
[1735129924956,20.0,196.4,196.28,6.1576]
[1735129925170,20.0,196.39,196.28,6.1576]
[1735129925459,12.7278,196.42,196.29,0.12549]
[1735129925665,32.69107362,196.43,196.32,8.0125]
[1735129925838,32.69107362,196.43,196.34,6.4524]
[1735129927263,24.7659969,196.43,196.34,6.4524]
[1735129927464,24.7659969,196.43,196.37,6.4524]
[1735129932759,7.92507672,196.51,196.4,0.12549]
[1735129932965,7.92507672,196.51,196.4,23.902374]
[1735129933167,7.92507672,196.51,196.39,6.4524]
[1735129933366,12.7226,196.5,196.39,6.4524]
[1735129934145,20.0,196.47,196.39,6.4524]
[1735129934845,43.776884,196.49,196.39,6.4524]
[1735129935558,20.0,196.48,196.39,6.4524]
[1735129936281,32.7245,196.48,196.39,6.4524]
[1735129937139,23.776884,196.47,196.39,6.4524]
[1735129937956,32.7245,196.48,196.39,6.4524]
[1735129938362,12.7245,196.48,196.39,6.4524]
[1735129939381,12.7219,196.51,196.39,6.4524]
[1735129939866,20.0,196.48,196.39,6.4524]
[1735129940166,20.0,196.47,196.39,6.4524]
[1735129941084,32.7246,196.47,196.39,6.4524]
[1735129941771,20.0,196.5,196.39,6.4524]
[1735129946558,12.7232,196.49,196.39,6.4524]
[1735129951379,0.12549,196.48,196.39,6.4524]
[1735129951581,12.7245,196.47,196.39,6.4524]
[1735129956679,20.0,196.43,196.39,6.4524]
[1735129956984,20.0,196.43,196.34,6.025]
[1735129957189,19.93868257,196.43,196.34,6.025]
[1735129958285,12.7278,196.42,196.34,6.025]
[1735129966975,12.7278,196.42,196.35,1.6022]
[1735129967681,12.7252,196.46,196.35,1.6022]
[1735129968206,7.92507672,196.49,196.44,1.6022]
[1735129969794,23.9781584,196.53,196.44,1.6022]
[1735129979907,23.9781584,196.53,196.45,0.12549]
[1735129980082,20.64327672,196.57,196.47,6.64459]
[1735129981119,12.7182,196.57,196.47,6.5191]
[1735129981321,20.0,196.54,196.47,6.5191]
[1735129982301,12.7204,196.54,196.47,6.5191]
[1735129982810,23.902374,196.53,196.47,6.5191]
[1735129983806,12.7213,196.52,196.47,6.5191]
[1735129987426,20.0,196.55,196.47,6.5191]
[1735129987590,32.7194,196.55,196.47,6.5191]
[1735129988627,23.902374,196.54,196.47,6.5191]
[1735129988926,12.7207,196.53,196.47,6.5191]
[1735129993422,23.902374,196.52,196.47,6.5191]
[1735129993626,20.0,196.49,196.44,1.6022]
[1735129993809,20.0,196.49,196.42,6.5191]
[1735129994006,20.0,196.45,196.42,6.5191]
[1735129994829,23.776884,196.47,196.42,6.5191]
[1735129995028,0.12549,196.46,196.42,6.5191]
[1735129995331,12.7258,196.45,196.42,6.5191]
[1735129996296,38.28949,196.52,196.42,6.5191]
[1735129996497,20.0,196.49,196.42,6.5191]
[1735129996696,20.0,196.48,196.42,6.5191]
[1735129998119,12.7245,196.47,196.42,6.5191]
[1735130001238,12.7227,196.5,196.42,6.5191]
[1735130001408,58.17802903,196.53,196.42,6.5191]
[1735130001613,45.45742903,196.53,196.42,6.5191]
[1735130001918,45.45742903,196.53,196.43,1.6168]
[1735130002228,37.53235231,196.53,196.43,1.6168]
[1735130005954,12.7181,196.57,196.43,1.6168]
[1735130006247,12.7181,196.57,196.45,23.776884]
[1735130006916,0.12549,196.56,196.44,6.409]
[1735130007853,20.0,196.54,196.44,6.409]
[1735130008122,32.7205,196.54,196.44,6.409]
[1735130017943,12.7205,196.54,196.44,6.409]
[1735130024143,20.0,196.55,196.44,6.409]
[1735130026533,12.7181,196.57,196.46,6.3078]
[1735130027222,0.12549,196.56,196.46,6.3078]
[1735130027427,20.0,196.54,196.46,6.3078]
[1735130027643,20.0,196.53,196.46,6.3078]
[1735130029653,12.7206,196.54,196.46,6.3078]
[1735130034070,39.68613204,196.57,196.46,6.3078]
[1735130034428,7.92507672,196.58,196.49,0.12549]
[1735130034741,28.56645344,196.6,196.5,1.5721]
[1735130034742,7.92507672,196.59,196.5,1.5721]
[1735130035861,12.7163,196.6,196.5,1.5721]
[1735130038058,7.92507672,196.63,196.51,26.055]
[1735130038360,20.63937672,196.63,196.51,26.055]
[1735130039260,12.7143,196.63,196.51,26.055]
[1735130040737,12.7143,196.63,196.51,6.055]
[1735130041058,23.902374,196.62,196.51,6.055]
[1735130041245,12.7143,196.63,196.51,6.055]
[1735130041445,20.63937672,196.63,196.51,6.055]
[1735130041963,12.7143,196.63,196.51,6.055]
[1735130044758,12.7143,196.63,196.53,6.5431]
[1735130044960,7.92507672,196.65,196.56,8.1768]
[1735130045471,20.63717672,196.67,196.56,8.1768]
[1735130046149,23.776884,196.66,196.56,8.1768]
[1735130047464,20.0,196.62,196.56,8.1768]
[1735130047643,20.0,196.6,196.56,8.1768]
[1735130047842,20.0,196.6,196.56,6.5431]
[1735130048042,0.12549,196.59,196.51,1.6337]
[1735130048257,20.0,196.56,196.5,6.5431]
[1735130049450,20.0,196.54,196.5,6.5431]
[1735130050968,12.7186,196.57,196.5,6.5431]
[1735130052577,7.92507672,196.59,196.5,6.5431]
[1735130052761,7.92507672,196.6,196.5,6.5431]
[1735130053279,12.7168,196.59,196.5,6.5431]
[1735130054261,20.0,196.56,196.5,6.5431]
[1735130054666,20.0,196.57,196.5,6.5431]
[1735130054871,20.0,196.56,196.5,6.5431]
[1735130055894,32.7189,196.56,196.5,6.5431]
[1735130056673,12.7189,196.56,196.5,6.5431]
[1735130056880,7.92507672,196.59,196.5,6.5431]
[1735130057475,12.7167,196.6,196.5,6.5431]
[1735130058384,20.0,196.57,196.5,6.5431]
[1735130059758,32.7184,196.57,196.5,6.5431]
[1735130062155,20.0,196.55,196.5,6.5431]
[1735130062358,32.7199,196.55,196.5,6.5431]
[1735130063184,12.7199,196.55,196.5,6.5431]
[1735130071486,20.0,196.52,196.46,1.6337]
[1735130071676,23.902374,196.51,196.44,6.0968]
[1735130071864,20.0,196.48,196.41,1.6612]
[1735130072885,12.7245,196.47,196.41,1.6612]
[1735130073278,20.0,196.44,196.41,1.6612]
[1735130073781,20.0,196.44,196.39,6.0968]
[1735130074990,32.7271,196.44,196.39,6.0968]
[1735130076088,12.7246,196.47,196.39,6.0968]
[1735130077492,33.33350689,196.53,196.39,6.0968]
[1735130077493,12.84679,196.52,196.39,6.0968]
[1735130077697,20.0,196.48,196.39,6.0968]
[1735130078395,12.7213,196.52,196.4,1.6428]
[1735130090600,12.7213,196.52,196.41,6.39709]
[1735130090907,12.7213,196.52,196.43,6.2716]
[1735130091090,12.7195,196.55,196.43,6.2716]
[1735130091294,12.7195,196.55,196.44,1.5275]
[1735130091706,12.7195,196.55,196.45,6.2716]
[1735130092295,12.7168,196.59,196.45,6.2716]
[1735130093111,20.0,196.55,196.45,6.2716]
[1735130093705,12.7185,196.57,196.45,6.2716]
[1735130095003,20.0,196.57,196.48,6.4357]
[1735130096707,20.0,196.58,196.48,6.4357]
[1735130098008,20.0,196.58,196.49,0.12549]
[1735130098384,12.7155,196.61,196.49,0.12549]
[1735130099386,12.65422627,196.61,196.49,0.12549]
[1735130100200,12.65422627,196.61,196.5,1.6278]
[1735130102213,20.0,196.58,196.5,1.6278]
[1735130102410,23.776884,196.58,196.5,1.6278]
[1735130103309,20.0,196.55,196.5,1.6278]
[1735130103698,20.0,196.55,196.48,6.4357]
[1735130103699,32.7199,196.55,196.48,6.4357]
[1735130104821,20.0,196.54,196.48,6.4357]
[1735130105211,12.7207,196.53,196.48,6.4357]
[1735130105914,20.0,196.5,196.48,6.4357]
[1735130107314,12.7207,196.53,196.48,6.4357]
[1735130107505,23.776884,196.55,196.48,6.4357]
[1735130108819,12.72,196.54,196.48,6.4357]
[1735130115535,20.0,196.5,196.45,1.5822]
[1735130116214,20.0,196.51,196.45,1.5822]
[1735130116419,20.0,196.5,196.43,6.4076]
[1735130116617,20.0,196.51,196.43,6.4076]
[1735130116812,20.0,196.45,196.4,1.5822]
[1735130117014,20.0,196.45,196.39,6.4076]
[1735130117420,20.0,196.46,196.39,6.4076]
[1735130117626,23.776884,196.45,196.39,6.4076]
[1735130118132,12.7265,196.44,196.39,6.4076]
[1735130120111,20.0,196.41,196.35,8.1585]
[1735130121020,12.7265,196.44,196.35,8.1585]
[1735130124933,23.776884,196.43,196.35,8.1585]
[1735130125942,20.0,196.4,196.35,8.1585]
[1735130126513,23.776884,196.39,196.3,8.1027]
[1735130126926,12.7304,196.38,196.3,8.1027]
[1735130127937,32.7285,196.41,196.3,8.1027]
[1735130134619,20.0,196.41,196.31,0.12549]
[1735130134817,20.0,196.42,196.32,6.2727]
[1735130135524,20.0,196.42,196.33,1.6325]
[1735130135726,12.7239,196.48,196.33,1.6325]
[1735130135934,12.7239,196.48,196.36,0.12549]
[1735130137030,23.776884,196.5,196.36,0.12549]
[1735130137230,20.0,196.47,196.36,0.12549]
[1735130138439,20.0,196.47,196.36,23.902374]
[1735130139640,20.0,196.47,196.35,7.9052]
[1735130139848,23.902374,196.48,196.35,7.9052]
[1735130140249,20.0,196.45,196.35,7.9052]
[1735130140926,32.7263,196.45,196.35,7.9052]
[1735130141842,12.7263,196.45,196.35,7.9052]
[1735130142038,12.7241,196.48,196.35,7.9052]
[1735130143242,20.0,196.47,196.35,7.9052]
[1735130143444,20.0,196.46,196.35,7.9052]
[1735130145249,12.7248,196.47,196.35,7.9052]
[1735130145549,12.7228,196.5,196.37,7.9052]
[1735130146047,12.7228,196.5,196.39,6.2727]
[1735130147131,12.7228,196.5,196.4,23.902374]
[1735130147340,12.7228,196.5,196.39,6.2727]
[1735130157160,23.902374,196.49,196.39,6.2727]
[1735130158353,23.902374,196.5,196.39,6.2727]
[1735130158552,12.7239,196.48,196.39,6.2727]
[1735130159555,38.1658,196.51,196.39,6.2727]
[1735130159756,20.0,196.48,196.39,6.2727]
[1735130160957,32.724,196.48,196.39,6.2727]
[1735130163137,23.902374,196.47,196.39,6.2727]
[1735130164950,12.7252,196.46,196.39,6.2727]
[1735130165464,20.0,196.42,196.39,6.2727]
[1735130165637,20.0,196.42,196.37,1.6325]
[1735130166336,20.0,196.43,196.37,1.6325]
[1735130168162,12.7271,196.44,196.37,1.6325]
[1735130168331,12.7271,196.44,196.37,0.0115]
[1735130169654,40.20519238,196.47,196.37,0.0115]
[1735130169844,40.20519238,196.47,196.38,6.2979]
[1735130169845,27.48039238,196.47,196.38,6.2979]
[1735130173062,27.48039238,196.47,196.39,23.902374]
[1735130174049,12.7208,196.53,196.39,23.902374]
[1735130174235,12.7208,196.53,196.41,23.902374]
[1735130174440,12.7208,196.53,196.42,1.602]
[1735130176546,20.0,196.5,196.42,1.602]
[1735130176858,20.0,196.5,196.36,12.7313]
[1735130176859,7.92507672,196.56,196.47,6.2979]
[1735130177162,7.92507672,196.56,196.48,23.902374]
[1735130177359,7.92507672,196.56,196.49,7.8999]
[1735130178161,27.46718026,196.58,196.49,7.8999]
[1735130180468,20.0,196.55,196.49,7.8999]
[1735130181762,32.7195,196.55,196.49,7.8999]
[1735130182141,27.46718026,196.58,196.49,7.8999]
[1735130182679,12.7181,196.57,196.49,7.8999]
[1735130183271,38.1543,196.57,196.49,6.2979]
[1735130183773,12.7207,196.53,196.49,6.2979]
[1735130188283,25.4362,196.57,196.49,6.2979]
[1735130188572,38.1543,196.57,196.49,6.2979]
[1735130189264,12.7181,196.57,196.49,6.2979]
[1735130191955,20.0,196.54,196.49,6.2979]
[1735130193261,12.7207,196.53,196.49,6.2979]
[1735130193652,12.7207,196.53,196.44,8.0236]
[1735130198173,20.0,196.5,196.44,8.0236]
[1735130198477,20.0,196.5,196.44,6.516]
[1735130199675,12.7232,196.49,196.44,6.516]
[1735130199859,20.0,196.46,196.39,8.0376]
[1735130200973,12.7258,196.45,196.39,8.0376]
[1735130201579,12.7219,196.51,196.39,8.0376]
[1735130201766,20.0,196.48,196.39,8.0376]
[1735130202756,12.724,196.48,196.39,8.0376]
[1735130206890,12.7252,196.46,196.39,8.0376]
[1735130207962,25.4485,196.48,196.39,8.0376]
[1735130208159,20.0,196.45,196.39,8.0376]
[1735130208377,20.0,196.44,196.34,8.2155]
[1735130209997,12.7271,196.43,196.34,8.2155]
[1735130210169,20.0,196.4,196.34,8.2155]
[1735130211283,20.0,196.44,196.34,8.2155]
[1735130211589,20.0,196.43,196.34,8.2155]
[1735130212285,12.7278,196.42,196.34,8.2155]
[1735130213282,20.0,196.39,196.34,8.2155]
[1735130213870,20.0,196.42,196.34,8.2155]
[1735130214990,12.7284,196.41,196.34,8.2155]
[1735130215371,20.0,196.42,196.34,8.2155]
[1735130215592,12.7267,196.44,196.34,8.2155]
[1735130217192,20.0,196.41,196.34,8.2155]
[1735130217885,23.902374,196.43,196.34,8.2155]
[1735130218087,20.0,196.4,196.34,8.2155]
[1735130218772,0.12549,196.44,196.34,8.2155]
[1735130218977,43.902374,196.44,196.34,8.2155]
[1735130219170,20.0,196.4,196.34,8.2155]
[1735130220162,12.7297,196.39,196.34,8.2155]
[1735130220369,20.0,196.45,196.34,8.2155]
[1735130220582,20.0,196.44,196.34,8.2155]
[1735130221894,23.902374,196.46,196.34,8.2155]
[1735130222570,12.7258,196.45,196.34,8.2155]
[1735130223190,20.0,196.42,196.34,8.2155]
[1735130225195,36.630774,196.41,196.34,8.2155]
[1735130225376,36.630774,196.41,196.34,6.6578]
[1735130225890,12.7284,196.41,196.34,6.6578]
[1735130227280,20.0,196.37,196.3,1.5448]
[1735130228384,12.7317,196.36,196.3,1.5448]
[1735130231787,12.7317,196.36,196.29,6.3294]
[1735130232100,20.0,196.33,196.29,6.3294]
[1735130233618,43.902374,196.36,196.29,6.3294]
[1735130233916,43.902374,196.36,196.26,1.5448]
[1735130235311,20.0,196.31,196.25,6.3294]
[1735130235514,32.7351,196.31,196.25,6.3294]
[1735130247954,10.69959285,196.38,196.25,6.3294]
[1735130247955,12.7323,196.35,196.25,6.3294]
[1735130248182,12.7323,196.35,196.26,1.6617]
[1735130248549,12.7304,196.38,196.26,1.6617]
[1735130251267,20.0,196.35,196.26,1.6617]
[1735130252271,12.7285,196.41,196.29,0.12549]
[1735130252569,7.9638732,196.43,196.32,6.2636]
[1735130252951,12.7265,196.45,196.32,6.2636]
[1735130253558,20.0,196.42,196.33,0.12549]
[1735130254571,12.7265,196.45,196.33,0.12549]
[1735130255080,23.87211855,196.46,196.36,6.3811]
[1735130256263,23.87211855,196.46,196.37,23.902374]
[1735130257447,23.87211855,196.46,196.39,23.902374]
[1735130257659,7.9638732,196.52,196.41,23.902374]
[1735130257856,7.9638732,196.52,196.45,7.9177]
[1735130258054,7.9638732,196.52,196.46,0.12549]
[1735130258458,12.7193,196.56,196.46,0.12549]
[1735130259383,20.0,196.56,196.45,7.9177]
[1735130260681,12.7194,196.55,196.45,7.9177]
[1735130262568,20.0,196.56,196.45,7.9177]
[1735130263278,20.0,196.56,196.46,0.12549]
[1735130265680,32.7191,196.56,196.45,7.9177]
[1735130271072,23.776884,196.55,196.45,7.9177]
[1735130272685,12.72,196.54,196.45,7.9177]
[1735130274583,20.0,196.54,196.45,7.9177]
[1735130274769,20.0,196.56,196.45,7.9177]
[1735130276081,19.93870443,196.56,196.45,7.9177]
[1735130276265,19.93870443,196.56,196.46,0.12549]
[1735130277265,19.93870443,196.56,196.46,23.902374]
[1735130280274,20.0,196.56,196.45,7.9177]
[1735130281584,12.7194,196.55,196.45,7.9177]
[1735130283299,12.7194,196.55,196.46,0.12549]
[1735130283598,20.0,196.56,196.48,0.12549]
[1735130283770,20.0,196.58,196.48,23.902374]
[1735130286201,20.0,196.58,196.47,6.1122]
[1735130286483,20.0,196.56,196.47,6.1122]
[1735130287401,20.0,196.54,196.47,6.1122]
[1735130287992,12.7207,196.53,196.47,6.1122]
[1735130290389,23.776884,196.52,196.47,6.1122]
[1735130290595,23.776884,196.52,196.45,1.5366]
[1735130291892,12.7219,196.51,196.45,1.5366]
[1735130292590,12.7219,196.51,196.42,6.1122]
[1735130293297,20.0,196.48,196.42,6.1122]
[1735130294692,12.7245,196.47,196.42,6.1122]
[1735130298700,12.7245,196.47,196.4,1.6178]
[1735130299599,20.0,196.47,196.4,1.6178]
[1735130299789,12.7227,196.5,196.4,1.6178]
[1735130300505,25.4414,196.53,196.4,1.6178]
[1735130301008,23.776884,196.52,196.4,1.6178]
[1735130301311,20.0,196.49,196.4,1.6178]
[1735130302808,32.7239,196.49,196.4,1.6178]
[1735130312119,20.0,196.48,196.4,1.6178]
[1735130312718,20.0,196.46,196.4,1.6178]
[1735130314025,20.0,196.48,196.4,1.6178]
[1735130314196,20.0,196.47,196.4,1.6178]
[1735130315022,43.776884,196.48,196.4,1.6178]
[1735130315194,43.776884,196.48,196.37,6.5449]
[1735130315392,0.12549,196.47,196.37,6.5449]
[1735130315905,20.12549,196.47,196.37,6.5449]
[1735130316134,10.0440511,196.5,196.37,6.5449]
[1735130316135,20.0,196.43,196.37,6.5449]
[1735130317205,12.7278,196.42,196.37,6.5449]
[1735130317522,20.0,196.43,196.37,6.5449]
[1735130319714,12.7257,196.46,196.37,6.5449]
[1735130320821,36.500084,196.49,196.37,6.5449]
[1735130321196,20.0,196.46,196.37,6.5449]
[1735130322596,32.7253,196.46,196.37,6.5449]
[1735130337037,12.7253,196.46,196.37,6.5449]
[1735130337541,12.7234,196.49,196.37,6.5449]
[1735130340529,12.7234,196.49,196.38,0.12549]
[1735130340744,12.7234,196.49,196.39,1.5324]
[1735130343647,7.98459244,196.48,196.39,1.5324]
[1735130343831,12.7245,196.47,196.39,1.5324]
[1735130345128,20.70909244,196.47,196.39,1.5324]
[1735130345853,7.98459244,196.47,196.39,1.5324]
[1735130346068,7.98459244,196.47,196.4,0.12549]
[1735130346854,48.16604986,196.5,196.4,0.12549]
[1735130346855,12.7226,196.5,196.4,0.12549]
[1735130347530,12.7226,196.5,196.39,1.5324]
[1735130348242,20.70719244,196.5,196.39,1.5324]
[1735130351955,20.70719244,196.5,196.4,6.0524]
[1735130352454,12.7226,196.5,196.4,6.0524]
[1735130354143,12.7226,196.5,196.41,0.12549]
[1735130354450,7.98459244,196.51,196.41,0.12549]
[1735130358162,20.70719244,196.51,196.4,6.0524]
[1735130358355,20.0,196.47,196.4,6.0524]
[1735130359667,24.02459252,196.47,196.4,6.0524]
[1735130360458,23.776884,196.46,196.4,6.0524]
[1735130360661,36.502084,196.46,196.4,6.0524]
[1735130361149,44.48667644,196.46,196.4,6.0524]
[1735130363473,36.502084,196.46,196.4,6.0524]
[1735130363853,20.0,196.43,196.4,6.0524]
[1735130366657,12.7252,196.46,196.4,6.0524]
[1735130369455,12.7269,196.44,196.4,6.0524]
[1735130371682,7.98459244,196.46,196.4,6.0524]
[1735130372264,12.7248,196.47,196.4,6.0524]
[1735130373885,25.4439,196.51,196.4,6.0524]
[1735130374189,20.0,196.47,196.4,6.0524]
[1735130376988,12.724,196.48,196.41,1.6374]
[1735130390294,20.0,196.45,196.4,6.0524]
[1735130391490,12.7265,196.44,196.4,6.0524]
[1735130391699,12.7265,196.44,196.36,7.7081]
[1735130395299,20.0,196.44,196.36,7.7081]
[1735130396275,20.70929244,196.47,196.36,7.7081]
[1735130398910,12.7247,196.47,196.36,7.7081]
[1735130399306,7.98459244,196.48,196.37,0.12549]
[1735130399690,7.98459244,196.48,196.39,0.12549]
[1735130399892,7.98459244,196.49,196.39,0.12549]
[1735130400809,7.98459244,196.49,196.41,6.40429]
[1735130401014,7.98459244,196.5,196.43,0.12549]
[1735130401621,27.47249627,196.53,196.43,0.12549]
[1735130403416,12.7213,196.52,196.41,6.2788]
[1735130404305,20.0,196.49,196.41,6.2788]
[1735130404507,23.902374,196.48,196.36,6.2788]
[1735130404814,20.0,196.45,196.36,6.2788]
[1735130405316,12.7284,196.42,196.36,6.2788]
[1735130407821,20.0,196.39,196.36,6.2788]
[1735130413795,20.0,196.41,196.36,6.2788]
[1735130414001,20.0,196.4,196.31,6.285]
[1735130415720,32.7295,196.4,196.31,6.285]
[1735130418326,20.0,196.36,196.31,6.285]
[1735130419726,32.7319,196.36,196.31,6.285]
[1735130424838,32.7319,196.36,196.2,0.76423189]
[1735130425134,32.7319,196.36,196.22,20.0]
[1735130425543,32.7319,196.36,196.23,6.4849]
[1735130426111,32.7319,196.36,196.24,0.12549]
[1735130426404,32.7319,196.36,196.25,1.6584]
[1735130427832,20.0,196.32,196.25,1.6584]
[1735130428732,20.0,196.32,196.23,6.4849]
[1735130428925,20.0,196.28,196.23,6.4849]
[1735130429308,20.0,196.28,196.2,1.6584]
[1735130430026,12.7375,196.27,196.2,1.6584]
[1735130430727,12.7375,196.27,196.18,6.4849]
[1735130431610,12.7393,196.25,196.18,6.4849]
[1735130432936,20.0,196.27,196.18,6.4849]
[1735130433233,20.0,196.26,196.18,6.4849]
[1735130434336,20.0,196.24,196.18,6.4849]
[1735130436738,32.7399,196.24,196.18,6.4849]
[1735130437737,23.776884,196.23,196.18,6.4849]
[1735130438816,20.0,196.2,196.16,1.6584]
[1735130440814,20.0,196.2,196.13,6.5078]
[1735130442031,20.0,196.19,196.11,1.5051]
[1735130442227,12.7427,196.19,196.11,1.5051]
[1735130444227,12.7427,196.19,196.08,6.5078]
[1735130445249,20.0,196.15,196.08,6.5078]
[1735130445616,23.776884,196.14,196.08,6.5078]
[1735130446425,36.523484,196.14,196.08,6.5078]
[1735130448645,20.0,196.11,196.08,6.5078]
[1735130448843,20.0,196.11,196.06,1.5051]
[1735130449032,20.0,196.11,196.04,6.0966]
[1735130449235,20.0,196.11,195.99,6.0966]
[1735130450226,20.0,196.07,195.99,6.0966]
[1735130451918,23.776884,196.06,195.99,6.0966]
[1735130452121,20.0,196.03,195.99,6.0966]
[1735130452327,32.7532,196.03,195.96,1.5515]
[1735130452531,23.71565079,196.02,195.94,6.0966]
[1735130453245,0.12549,196.01,195.94,6.0966]
[1735130453543,20.0,195.99,195.83,0.12549]
[1735130453740,20.0,195.99,195.84,7.6481]
[1735130453925,0.12549,195.98,195.84,7.6481]
[1735130454327,20.0,195.94,195.84,7.6481]
[1735130454833,12.757,195.97,195.84,7.6481]
[1735130455628,20.0,195.98,195.85,0.12549]
[1735130455828,20.0,195.98,195.89,6.0966]
[1735130462938,32.7564,195.98,195.89,6.0966]
[1735130464442,23.776884,195.97,195.89,6.0966]
[1735130464754,32.7564,195.98,195.89,6.0966]
[1735130467062,1.6603,195.97,195.85,0.12549]
[1735130467267,12.7577,195.96,195.85,0.12549]
[1735130468672,20.0,195.98,195.85,0.12549]
[1735130468849,20.0,195.97,195.87,0.12549]
[1735130471661,4.02459252,196.05,195.93,20.12549]
[1735130471852,12.7486,196.1,195.99,0.12549]
[1735130473369,32.7466,196.14,195.99,23.902374]
[1735130473541,12.7466,196.14,195.99,23.902374]
[1735130477643,20.0,196.15,196.01,23.902374]
[1735130478141,24.02459252,196.16,196.01,23.902374]
[1735130478442,32.7453,196.16,196.03,0.12549]
[1735130478648,32.7453,196.16,196.03,23.902374]
[1735130478977,12.7453,196.16,196.03,23.902374]
[1735130479282,12.7427,196.19,196.05,23.902374]
[1735130479576,12.7427,196.19,196.07,0.12549]
[1735130480347,20.0,196.16,196.07,23.902374]
[1735130480550,20.0,196.2,196.07,23.902374]
[1735130482466,12.7407,196.23,196.07,23.902374]
[1735130483259,12.7407,196.23,196.09,0.12549]
[1735130483571,12.7407,196.23,196.09,23.902374]
[1735130483763,20.0,196.2,196.09,0.12549]
[1735130484345,20.0,196.19,196.09,0.12549]
[1735130485171,20.0,196.19,196.09,23.902374]